bitfinex/quotes_BTCUSD_20241107
["timestamp","ask_amount","ask_price","bid_price","bid_amount"]
[1730999481896,0.0372295,76009.0,76008.0,0.62563712]
[1730999481897,0.0112295,76009.0,76008.0,0.62563712]
[1730999482187,0.0112295,76009.0,76008.0,0.70163712]
[1730999482404,0.0122295,76009.0,76008.0,0.70163712]
[1730999482841,0.0148955,76009.0,76008.0,0.70863712]
[1730999483302,0.0004,76019.0,76011.0,0.19799136]
[1730999483547,0.0004,76019.0,76018.0,0.022]
[1730999483761,0.0004,76019.0,76018.0,0.45003238]
[1730999484185,0.0004,76019.0,76018.0,0.84467238]
[1730999484393,0.05269982,76049.0,76027.0,0.161]
[1730999484599,6e-05,76050.0,76027.0,0.32484016]
[1730999484819,6e-05,76050.0,76027.0,0.71944016]
[1730999486087,6e-05,76050.0,76027.0,0.73144016]
[1730999486499,6e-05,76050.0,76027.0,0.73344016]
[1730999486679,0.00108,76028.0,76027.0,0.74444016]
[1730999491350,0.00108,76028.0,76027.0,0.79862236]
[1730999493545,0.00108,76028.0,76027.0,0.95161372]
[1730999494209,0.002746,76028.0,76027.0,0.95161372]
[1730999496166,0.17849318,76045.0,76044.0,0.01]
[1730999496399,0.17849318,76045.0,76044.0,0.14224102]
[1730999496612,0.05263023,76050.0,76049.0,0.005]
[1730999496816,0.05263023,76050.0,76049.0,0.13724102]
[1730999497000,0.05263023,76050.0,76049.0,0.53172102]
[1730999498258,6e-05,76050.0,76049.0,0.53172102]
[1730999498467,0.00406,76050.0,76049.0,0.53272102]
[1730999498689,0.00406,76050.0,76049.0,0.58811553]
[1730999499244,0.01606,76050.0,76049.0,0.58911553]
[1730999499845,0.00406,76050.0,76049.0,0.58811553]
[1730999500182,0.01506,76050.0,76049.0,0.58911553]
[1730999501165,0.01106,76050.0,76049.0,0.58811553]
[1730999501409,6e-05,76050.0,76049.0,0.58711553]
[1730999502034,0.00406,76050.0,76049.0,0.58811553]
[1730999502235,0.01606,76050.0,76049.0,0.58911553]
[1730999502540,0.01206,76050.0,76049.0,0.59311553]
[1730999502934,0.01606,76050.0,76049.0,0.59411553]
[1730999505940,0.016893,76050.0,76049.0,0.59411553]
[1730999506641,0.016893,76050.0,76049.0,0.61711553]
[1730999511299,0.016893,76050.0,76049.0,0.56172102]
[1730999511529,0.02918223,76050.0,76049.0,0.56172102]
[1730999511990,0.016893,76050.0,76049.0,0.56172102]
[1730999512196,0.016893,76050.0,76049.0,0.53872102]
[1730999512647,0.02919544,76050.0,76049.0,0.53872102]
[1730999512861,0.016893,76050.0,76049.0,0.59411553]
[1730999513057,0.02919575,76050.0,76049.0,0.59411553]
[1730999513264,0.00529574,76050.0,76049.0,0.59411553]
[1730999513473,0.00529574,76050.0,76049.0,0.61711553]
[1730999514778,0.00529574,76050.0,76049.0,0.56172102]
[1730999515101,0.00529574,76050.0,76049.0,0.53872102]
[1730999515733,0.00529574,76050.0,76049.0,0.56172102]
[1730999516137,0.000745,76054.0,76049.0,0.56172102]
[1730999516138,0.000745,76054.0,76053.0,0.01]
[1730999516338,0.000745,76054.0,76053.0,0.55970102]
[1730999516566,0.000745,76054.0,76053.0,0.61587112]
[1730999517370,0.000745,76054.0,76053.0,0.61687112]
[1730999518628,0.007745,76054.0,76053.0,0.61787112]
[1730999518853,0.007745,76054.0,76053.0,0.69697112]
[1730999519683,0.007745,76054.0,76053.0,0.69597112]
[1730999519888,0.000745,76054.0,76053.0,0.53670102]
[1730999520099,0.001745,76054.0,76053.0,0.53770102]
[1730999520329,0.002745,76054.0,76053.0,0.54570102]
[1730999520533,0.002745,76054.0,76053.0,0.54470102]
[1730999520728,0.001745,76054.0,76053.0,0.54470102]
[1730999520947,0.001745,76054.0,76053.0,0.60517112]
[1730999521309,0.001745,76054.0,76053.0,0.62817112]
[1730999521547,0.001745,76054.0,76053.0,0.62217112]
[1730999521793,0.002745,76054.0,76053.0,0.62317112]
[1730999522000,0.001745,76054.0,76053.0,0.61517112]
[1730999522672,0.002745,76054.0,76053.0,0.62317112]
[1730999522875,0.001745,76054.0,76053.0,0.61517112]
[1730999523072,0.000745,76054.0,76053.0,0.61417112]
[1730999523313,0.014745,76054.0,76053.0,0.61517112]
[1730999523452,0.015745,76054.0,76053.0,0.61617112]
[1730999523850,0.014745,76054.0,76053.0,0.61517112]
[1730999524089,0.014745,76054.0,76053.0,0.69157112]
[1730999524284,0.015745,76054.0,76053.0,0.69257112]
[1730999524547,0.001745,76054.0,76053.0,0.69157112]
[1730999525104,0.014745,76054.0,76053.0,0.69157112]
[1730999525303,0.000745,76054.0,76053.0,0.70057112]
[1730999525459,0.000745,76054.0,76053.0,0.70257112]
[1730999525635,0.001745,76054.0,76053.0,0.70257112]
[1730999525861,0.000745,76054.0,76053.0,0.70257112]
[1730999526285,0.001745,76054.0,76053.0,0.70257112]
[1730999526527,0.000745,76054.0,76053.0,0.70757112]
[1730999526699,0.000745,76054.0,76053.0,0.75287112]
[1730999526907,0.000745,76054.0,76053.0,0.74787112]
[1730999527266,0.000745,76054.0,76053.0,0.76087112]
[1730999527721,0.000745,76054.0,76053.0,0.75687112]
[1730999527920,0.001745,76054.0,76053.0,0.74687112]
[1730999528258,0.000745,76054.0,76053.0,0.82001581]
[1730999528388,0.10024718,76070.0,76069.0,0.02]
[1730999528593,0.10024718,76070.0,76069.0,0.17524102]
[1730999528799,0.014718,76074.0,76073.0,0.01]
[1730999528982,0.014718,76074.0,76073.0,0.16524102]
[1730999529183,0.014718,76074.0,76073.0,0.55960102]
[1730999529673,0.014718,76074.0,76073.0,0.72259238]
[1730999529863,0.014718,76074.0,76073.0,0.72459238]
[1730999530083,0.014718,76074.0,76073.0,0.83180416]
[1730999530617,0.014718,76074.0,76073.0,0.83480416]
[1730999531035,0.014718,76074.0,76073.0,0.6558128]
[1730999531717,0.014718,76074.0,76073.0,0.6578128]
[1730999531961,0.014718,76074.0,76073.0,0.6718128]
[1730999532165,0.014718,76074.0,76073.0,0.6698128]
[1730999532333,0.015718,76074.0,76073.0,0.7068128]
[1730999532749,0.014718,76074.0,76073.0,0.6788128]
[1730999532970,0.015718,76074.0,76073.0,0.6918128]
[1730999533290,0.015718,76074.0,76073.0,0.6898128]
[1730999533647,0.015718,76074.0,76073.0,0.6788128]
[1730999534183,0.015718,76074.0,76073.0,0.6888128]
[1730999534605,0.015718,76074.0,76073.0,0.6808128]
[1730999534769,0.016718,76074.0,76073.0,0.6998128]
[1730999534970,0.014718,76074.0,76073.0,0.6898128]
[1730999535359,0.014718,76074.0,76073.0,0.6998128]
[1730999536258,0.014718,76074.0,76073.0,0.6878128]
[1730999536420,0.014718,76074.0,76073.0,0.6978128]
[1730999536645,0.014718,76074.0,76073.0,0.6878128]
[1730999537001,0.014718,76074.0,76073.0,0.58860102]
[1730999538130,0.014718,76074.0,76073.0,0.57860102]
[1730999538335,0.014718,76074.0,76073.0,0.63830102]
[1730999538615,0.014718,76074.0,76073.0,0.71670102]
[1730999538993,0.014718,76074.0,76073.0,0.71870102]
[1730999539263,0.014718,76074.0,76073.0,0.78857112]
[1730999539869,0.014718,76074.0,76073.0,0.66047112]
[1730999540394,0.014718,76074.0,76073.0,0.65147112]
[1730999540804,0.014718,76074.0,76073.0,0.66047112]
[1730999541632,0.015551,76074.0,76073.0,0.65047112]
[1730999541809,0.016551,76074.0,76073.0,0.66047112]
[1730999542014,0.016551,76074.0,76073.0,0.65147112]
[1730999542329,0.015551,76074.0,76073.0,0.65047112]
[1730999542535,0.015551,76074.0,76073.0,0.65547112]
[1730999542724,0.015551,76074.0,76073.0,0.64847112]
[1730999543149,0.015551,76074.0,76073.0,0.70391929]
[1730999543919,0.015551,76074.0,76073.0,0.70191929]
[1730999544136,0.015551,76074.0,76073.0,0.64947112]
[1730999544985,0.015551,76074.0,76073.0,0.65147112]
[1730999546217,0.010551,76074.0,76073.0,0.64947112]
[1730999546424,0.010551,76074.0,76073.0,0.65147112]
[1730999550986,0.010551,76074.0,76073.0,0.70584656]
[1730999552994,0.010551,76074.0,76073.0,0.63397646]
[1730999553404,0.010551,76074.0,76073.0,0.75747646]
[1730999554146,0.010551,76074.0,76073.0,0.60597646]
[1730999554362,0.010551,76074.0,76073.0,0.55160102]
[1730999554506,0.010551,76074.0,76073.0,0.56560102]
[1730999554706,0.010551,76074.0,76073.0,0.61752772]
[1730999554930,0.010551,76074.0,76073.0,0.60352772]
[1730999555269,0.011551,76074.0,76073.0,0.63152772]
[1730999555479,0.010551,76074.0,76073.0,0.64052772]
[1730999555912,0.011551,76074.0,76073.0,0.64152772]
[1730999556123,0.011551,76074.0,76073.0,0.63852772]
[1730999556288,0.011551,76074.0,76073.0,0.65052772]
[1730999556505,0.012551,76074.0,76073.0,0.65052772]
[1730999556679,0.010551,76074.0,76073.0,0.63852772]
[1730999557472,0.010551,76074.0,76073.0,0.62852772]
[1730999557807,0.010551,76074.0,76073.0,0.65168423]
[1730999558036,0.011551,76074.0,76073.0,0.66468239]
[1730999558210,0.011551,76074.0,76073.0,0.64068239]
[1730999558609,0.011551,76074.0,76073.0,0.65068239]
[1730999559144,0.012551,76074.0,76073.0,0.65268239]
[1730999559354,0.010551,76074.0,76073.0,0.65168239]
[1730999559760,0.011551,76074.0,76073.0,0.66468239]
[1730999560581,0.011551,76074.0,76073.0,0.65368239]
[1730999561005,0.010551,76074.0,76073.0,0.65468239]
[1730999561437,0.011551,76074.0,76073.0,0.65468703]
[1730999561659,0.011551,76074.0,76073.0,0.64068703]
[1730999561660,0.010551,76074.0,76073.0,0.64068703]
[1730999561933,0.0004,76079.0,76078.0,0.022]
[1730999562155,0.0004,76079.0,76078.0,0.2778352]
[1730999562367,0.0004,76079.0,76078.0,0.6721652]
[1730999562806,0.0004,76079.0,76078.0,0.6601652]
[1730999563031,0.0014,76079.0,76078.0,0.65271105]
[1730999563924,0.0014,76079.0,76078.0,0.67416898]
[1730999564138,0.0014,76079.0,76078.0,0.68316898]
[1730999564332,0.0004,76079.0,76078.0,0.67116898]
[1730999564538,0.0004,76079.0,76078.0,0.66916898]
[1730999564780,0.0014,76079.0,76078.0,0.64855174]
[1730999564971,0.0014,76079.0,76078.0,0.68017028]
[1730999565961,0.0014,76079.0,76078.0,0.68217028]
[1730999566328,0.002233,76079.0,76078.0,0.68017028]
[1730999568305,0.002233,76079.0,76078.0,0.68017169]
[1730999568499,0.002233,76079.0,76078.0,0.66071348]
[1730999568702,0.002233,76079.0,76078.0,0.68017229]
[1730999569252,0.002233,76079.0,76078.0,0.76767229]
[1730999569487,0.000745,76086.0,76078.0,0.76767229]
[1730999569488,0.000745,76086.0,76085.0,0.045]
[1730999569713,0.000745,76086.0,76085.0,0.50148977]
[1730999570010,0.000745,76086.0,76085.0,0.85790026]
[1730999570214,0.000745,76086.0,76085.0,0.76085894]
[1730999570421,0.000745,76086.0,76085.0,0.98125238]
[1730999570627,0.000745,76086.0,76085.0,0.99025238]
[1730999570866,0.001745,76086.0,76085.0,1.00425238]
[1730999571047,0.001745,76086.0,76085.0,0.98125238]
[1730999571321,0.001745,76086.0,76085.0,0.88345894]
[1730999571549,0.002745,76086.0,76085.0,0.91145894]
[1730999571776,0.001745,76086.0,76085.0,0.95203418]
[1730999571964,0.002745,76086.0,76085.0,0.94659039]
[1730999572155,0.002745,76086.0,76085.0,0.93259039]
[1730999572378,0.001745,76086.0,76085.0,0.91859039]
[1730999573022,0.001745,76086.0,76085.0,0.93801236]
[1730999573447,0.001745,76086.0,76085.0,0.64004368]
[1730999573649,0.001745,76086.0,76085.0,0.65604368]
[1730999573867,0.001745,76086.0,76085.0,0.66604368]
[1730999574081,0.000745,76086.0,76085.0,0.57811536]
[1730999574273,0.000745,76086.0,76085.0,0.59211536]
[1730999574449,0.000745,76086.0,76085.0,0.60611536]
[1730999574660,0.000745,76086.0,76085.0,0.66922676]
[1730999574802,0.000745,76086.0,76085.0,0.70522676]
[1730999575012,0.000745,76086.0,76085.0,0.65965242]
[1730999575216,0.000745,76086.0,76085.0,0.68821334]
[1730999575442,0.000745,76086.0,76085.0,0.69921334]
[1730999577848,0.000745,76086.0,76085.0,0.68821334]
[1730999578065,0.000745,76086.0,76085.0,0.67821334]
[1730999578499,0.000745,76086.0,76085.0,0.76941334]
[1730999578725,0.000745,76096.0,76095.0,0.18536868]
[1730999578927,0.000745,76096.0,76095.0,0.36890749]
[1730999579129,0.000745,76096.0,76095.0,0.59777881]
[1730999579346,0.000745,76096.0,76095.0,0.59977881]
[1730999579552,0.000745,76096.0,76095.0,0.59777881]
[1730999580167,0.000745,76096.0,76095.0,0.59977881]
[1730999580372,0.000745,76096.0,76095.0,0.59777881]
[1730999580814,0.000745,76096.0,76095.0,0.58204194]
[1730999581020,0.078245,76096.0,76095.0,0.58204194]
[1730999581224,0.078245,76096.0,76095.0,0.58561983]
[1730999581402,0.078245,76096.0,76095.0,0.61904194]
[1730999581720,0.078245,76096.0,76095.0,0.60504194]
[1730999581925,0.078245,76096.0,76095.0,0.59104194]
[1730999582055,0.078245,76096.0,76095.0,0.66654613]
[1730999582451,0.078245,76096.0,76095.0,0.60504194]
[1730999582649,0.078245,76096.0,76095.0,0.58561983]
[1730999582850,0.078245,76096.0,76095.0,0.60504194]
[1730999583055,0.078245,76096.0,76095.0,0.58561983]
[1730999583306,0.078245,76096.0,76095.0,0.59761983]
[1730999583520,0.078245,76096.0,76095.0,0.56061983]
[1730999583743,0.078245,76096.0,76095.0,0.54861983]
[1730999584098,0.078245,76096.0,76095.0,0.55461983]
[1730999584371,0.078245,76096.0,76095.0,0.55548102]
[1730999584577,0.078245,76096.0,76095.0,0.59966224]
[1730999585008,0.078245,76096.0,76095.0,0.61766224]
[1730999585181,0.078245,76096.0,76095.0,0.55161414]
[1730999585945,0.078245,76096.0,76095.0,0.55161606]
[1730999586164,0.078245,76096.0,76095.0,0.53148102]
[1730999586373,0.078245,76096.0,76095.0,0.54761655]
[1730999586602,0.078245,76096.0,76095.0,0.55261655]
[1730999586808,0.078245,76096.0,76095.0,0.54861655]
[1730999587230,0.078245,76096.0,76095.0,0.5989782]
[1730999587649,0.078245,76096.0,76095.0,0.5999782]
[1730999587878,0.078245,76096.0,76095.0,0.54461655]
[1730999588072,0.078245,76096.0,76095.0,0.53248102]
[1730999588440,0.078245,76096.0,76095.0,0.53148102]
[1730999589512,0.078245,76096.0,76095.0,0.53448102]
[1730999589928,0.078245,76096.0,76095.0,0.53548102]
[1730999591674,0.073245,76096.0,76095.0,0.53148102]
[1730999592864,0.073245,76096.0,76095.0,0.53448102]
[1730999593066,0.073245,76096.0,76095.0,0.53648102]
[1730999593269,0.118345,76096.0,76095.0,0.53148102]
[1730999593637,0.118345,76096.0,76095.0,0.52648102]
[1730999594360,0.118345,76096.0,76095.0,0.52848102]
[1730999594973,0.123345,76096.0,76095.0,0.52848102]
[1730999595185,0.118345,76096.0,76095.0,0.52848102]
[1730999595557,0.118345,76096.0,76095.0,0.58682912]
[1730999595705,0.118345,76096.0,76095.0,0.53348102]
[1730999596320,0.118345,76096.0,76095.0,0.52848102]
[1730999596697,0.118345,76096.0,76095.0,0.53348102]
[1730999597157,0.118345,76096.0,76095.0,0.52848102]
[1730999597663,0.118345,76096.0,76095.0,0.58682912]
[1730999597906,0.118345,76096.0,76095.0,0.53348102]
[1730999598819,0.118345,76096.0,76095.0,0.52848102]
[1730999599768,0.123345,76096.0,76095.0,0.39624]
[1730999600023,0.130345,76096.0,76095.0,0.39624]
[1730999600243,0.238315,76096.0,76095.0,0.39624]
[1730999600477,0.16761019,76096.0,76095.0,0.39624]
[1730999600704,0.28888919,76096.0,76095.0,0.39624]
[1730999600956,0.249624,76096.0,76095.0,0.39624]
[1730999601217,0.249624,76096.0,76095.0,0.39524]
[1730999601710,0.38889681,76096.0,76095.0,0.39524]
[1730999601948,0.38889681,76096.0,76095.0,0.39424]
[1730999602183,0.56956981,76096.0,76095.0,0.39524]
[1730999602408,0.56956981,76096.0,76095.0,0.396908]
[1730999602663,0.55740381,76096.0,76095.0,0.395908]
[1730999602896,0.49816281,76096.0,76095.0,0.395908]
[1730999603138,0.51516281,76096.0,76095.0,0.396908]
[1730999603378,0.50316281,76096.0,76095.0,0.395908]
[1730999603618,0.49189,76096.0,76095.0,0.395908]
[1730999603833,0.54499062,76096.0,76095.0,0.395908]
[1730999604268,0.55899062,76096.0,76095.0,0.395908]
[1730999604735,0.54429262,76096.0,76095.0,0.4354988]
[1730999604980,0.53029262,76096.0,76095.0,0.395908]
[1730999605228,0.54329262,76096.0,76095.0,0.396908]
[1730999605459,0.29027962,76096.0,76095.0,0.396908]
[1730999605691,0.27727962,76096.0,76095.0,0.395908]
[1730999605923,0.30227962,76096.0,76095.0,0.397908]
[1730999606177,0.20227962,76096.0,76095.0,0.4376988]
[1730999606423,0.20227962,76096.0,76095.0,0.397908]
[1730999607878,0.20227962,76096.0,76095.0,0.53014902]
[1730999608313,0.19727962,76096.0,76095.0,0.53014902]
[1730999608560,0.144179,76096.0,76095.0,0.53014902]
[1730999609063,0.144179,76096.0,76095.0,0.53514902]
[1730999609295,0.099079,76096.0,76095.0,0.53514902]
[1730999610221,0.087079,76096.0,76095.0,0.53414902]
[1730999610663,0.013834,76096.0,76095.0,0.53414902]
[1730999610922,0.000834,76096.0,76095.0,0.53314902]
[1730999611129,0.000834,76096.0,76095.0,0.60320079]
[1730999611130,0.012834,76096.0,76095.0,0.60320079]
[1730999611368,0.024834,76096.0,76095.0,0.60420079]
[1730999611590,0.024834,76096.0,76095.0,0.53514902]
[1730999611813,0.012834,76096.0,76095.0,0.53414902]
[1730999612035,0.012834,76096.0,76095.0,0.53614902]
[1730999612738,0.000834,76096.0,76095.0,0.54014902]
[1730999612959,0.000834,76096.0,76095.0,0.61240079]
[1730999613647,0.000834,76096.0,76095.0,0.68930079]
[1730999615336,0.000834,76096.0,76095.0,0.71230079]
[1730999615608,0.000834,76096.0,76095.0,0.71430079]
[1730999615821,0.000834,76096.0,76095.0,0.71230079]
[1730999616037,0.000834,76096.0,76095.0,0.71030079]
[1730999616520,0.001834,76096.0,76095.0,0.72130079]
[1730999616757,0.002834,76096.0,76095.0,0.73530079]
[1730999617185,0.002834,76096.0,76095.0,0.78930582]
[1730999617623,0.001834,76096.0,76095.0,0.77530582]
[1730999618155,0.002834,76096.0,76095.0,0.78930582]
[1730999618851,0.002834,76096.0,76095.0,0.66604902]
[1730999619083,0.002834,76096.0,76095.0,0.55614902]
[1730999619329,0.002834,76096.0,76095.0,0.56114902]
[1730999620174,0.001834,76096.0,76095.0,0.54714902]
[1730999620395,0.002834,76096.0,76095.0,0.56114902]
[1730999620605,0.001834,76096.0,76095.0,0.54714902]
[1730999620810,0.000834,76096.0,76095.0,0.53314902]
[1730999621025,0.001834,76096.0,76095.0,0.55414902]
[1730999621446,0.001834,76096.0,76095.0,0.54014902]
[1730999621447,0.000834,76096.0,76095.0,0.54014902]
[1730999621926,0.001834,76096.0,76095.0,0.54614902]
[1730999622137,0.077934,76096.0,76095.0,0.54614902]
[1730999622316,0.076934,76096.0,76095.0,0.54014902]
[1730999622556,0.076934,76096.0,76095.0,0.54114902]
[1730999623227,0.076934,76096.0,76095.0,0.53414902]
[1730999623431,0.076934,76096.0,76095.0,0.52914902]
[1730999623644,0.229934,76096.0,76095.0,0.53214902]
[1730999623859,0.229934,76096.0,76095.0,0.52814902]
[1730999624069,0.230934,76096.0,76095.0,0.52814902]
[1730999624506,0.229934,76096.0,76095.0,0.52814902]
[1730999624920,0.240934,76096.0,76095.0,0.52914902]
[1730999625126,0.087934,76096.0,76095.0,0.58746392]
[1730999625341,0.087934,76096.0,76095.0,0.58646392]
[1730999625342,0.000834,76096.0,76095.0,0.58646392]
[1730999625550,0.000834,76096.0,76095.0,0.53314902]
[1730999625780,0.000834,76096.0,76095.0,0.53414902]
[1730999625781,0.011834,76096.0,76095.0,0.53414902]
[1730999625990,0.021834,76096.0,76095.0,0.53514902]
[1730999626208,0.021834,76096.0,76095.0,0.53414902]
[1730999626429,0.011834,76096.0,76095.0,0.53414902]
[1730999626902,0.000834,76096.0,76095.0,0.53314902]
[1730999627122,0.05429879,76096.0,76095.0,0.53314902]
[1730999627333,0.001834,76096.0,76095.0,0.53314902]
[1730999629245,0.001834,76096.0,76095.0,0.58646392]
[1730999630144,0.000834,76096.0,76095.0,0.58646392]
[1730999630361,0.000834,76096.0,76095.0,0.63176392]
[1730999630641,0.001834,76096.0,76095.0,0.72166392]
[1730999630875,0.001834,76096.0,76095.0,0.74566392]
[1730999631093,0.001834,76096.0,76095.0,0.75566392]
[1730999631313,0.002834,76096.0,76095.0,0.76266392]
[1730999631538,0.002834,76096.0,76095.0,0.76466392]
[1730999632288,0.000745,76127.0,76118.0,0.005]
[1730999632520,0.19810218,76120.0,76118.0,0.11232707]
[1730999632766,0.000745,76127.0,76118.0,0.51644707]
[1730999633023,0.000745,76127.0,76118.0,0.66618868]
[1730999633294,0.000745,76127.0,76126.0,0.27406868]
[1730999633514,0.000745,76127.0,76126.0,0.24194102]
[1730999633783,0.000745,76127.0,76126.0,0.63602102]
[1730999634019,0.000745,76127.0,76126.0,0.53132102]
[1730999634433,0.000745,76127.0,76126.0,0.55932102]
[1730999634688,0.001745,76127.0,76126.0,0.7956218]
[1730999635744,0.001745,76127.0,76126.0,0.7916218]
[1730999635957,0.000745,76127.0,76126.0,0.7726218]
[1730999636167,0.000745,76127.0,76126.0,0.7916218]
[1730999636378,0.000745,76127.0,76126.0,0.8056218]
[1730999636585,0.000745,76127.0,76126.0,0.7916218]
[1730999637013,0.000745,76127.0,76126.0,0.62925312]
[1730999637225,0.000745,76127.0,76126.0,0.63925312]
[1730999637435,0.000745,76127.0,76126.0,0.65325312]
[1730999637653,0.000745,76127.0,76126.0,0.7916218]
[1730999638082,0.000745,76127.0,76126.0,0.7866218]
[1730999638353,0.000745,76127.0,76126.0,0.63425312]
[1730999638569,0.000745,76127.0,76126.0,0.7866218]
[1730999639222,0.000745,76127.0,76126.0,0.7836218]
[1730999639452,0.000745,76127.0,76126.0,0.7676218]
[1730999639675,0.000745,76127.0,76126.0,0.7956218]
[1730999639890,0.000745,76127.0,76126.0,0.64325312]
[1730999640103,0.000745,76127.0,76126.0,0.61525312]
[1730999640321,0.000745,76127.0,76126.0,0.64325312]
[1730999640538,0.000745,76127.0,76126.0,0.71805312]
[1730999640787,0.000745,76127.0,76126.0,0.70405312]
[1730999641015,0.000745,76127.0,76126.0,0.71605312]
[1730999641243,0.000745,76127.0,76126.0,0.73005312]
[1730999642307,0.0004,76139.0,76131.0,0.005]
[1730999642521,0.0004,76139.0,76131.0,0.16639511]
[1730999642726,0.0004,76139.0,76131.0,0.56045511]
[1730999642948,0.0004,76139.0,76131.0,0.53130102]
[1730999643175,0.0823,76138.0,76131.0,0.53130102]
[1730999643617,0.0004,76139.0,76131.0,0.54330102]
[1730999643841,0.0004,76139.0,76131.0,0.57130102]
[1730999644055,0.0004,76139.0,76131.0,0.55730102]
[1730999644262,0.0004,76139.0,76131.0,0.54530102]
[1730999644471,0.0004,76139.0,76131.0,0.53130102]
[1730999644939,0.0762,76132.0,76131.0,0.52630102]
[1730999645364,0.1288175,76132.0,76131.0,0.52630102]
[1730999646222,0.1288175,76132.0,76131.0,0.53430102]
[1730999646435,0.1288175,76132.0,76131.0,0.58773112]
[1730999646656,0.0005,76132.0,76131.0,0.57973112]
[1730999646863,0.0005,76132.0,76131.0,0.58673112]
[1730999647065,0.0065,76132.0,76131.0,0.58073112]
[1730999647561,0.0015,76132.0,76131.0,0.52730102]
[1730999647788,0.0065,76132.0,76131.0,0.52730102]
[1730999648216,0.0065,76132.0,76131.0,0.539337]
[1730999648421,0.0065,76132.0,76131.0,0.539464]
[1730999648879,0.0065,76132.0,76131.0,0.544464]
[1730999649096,0.0015,76132.0,76131.0,0.5989104]
[1730999649321,0.0005,76132.0,76131.0,0.544464]
[1730999649538,0.0065,76132.0,76131.0,0.545464]
[1730999650164,0.0015,76132.0,76131.0,0.544464]
[1730999650381,0.0055,76132.0,76131.0,0.5990772]
[1730999650583,0.006334,76132.0,76131.0,0.5990772]
[1730999650791,0.007334,76132.0,76131.0,3.544464]
[1730999650990,0.002334,76132.0,76131.0,3.544464]
[1730999651811,0.002334,76132.0,76131.0,3.543464]
[1730999652036,0.001334,76132.0,76131.0,3.543464]
[1730999652234,0.001334,76132.0,76131.0,3.545464]
[1730999652235,0.007334,76132.0,76131.0,3.545464]
[1730999652452,0.006334,76132.0,76131.0,3.544464]
[1730999652651,0.001334,76132.0,76131.0,3.543464]
[1730999652995,0.002334,76132.0,76131.0,3.549464]
[1730999653196,0.002334,76132.0,76131.0,3.548464]
[1730999653407,0.002334,76132.0,76131.0,3.554464]
[1730999653648,0.002334,76132.0,76131.0,3.549464]
[1730999653852,0.001334,76132.0,76131.0,3.543464]
[1730999654054,0.001334,76132.0,76131.0,3.547464]
[1730999654456,0.077234,76132.0,76131.0,3.547464]
[1730999654890,0.077234,76132.0,76131.0,3.54747795]
[1730999655098,0.077234,76132.0,76131.0,3.55247795]
[1730999655505,0.077234,76132.0,76131.0,3.54747795]
[1730999655711,0.077234,76132.0,76131.0,3.54847795]
[1730999655919,0.077234,76132.0,76131.0,3.54347795]
[1730999656128,0.077234,76132.0,76131.0,3.53847795]
[1730999656296,0.077234,76132.0,76131.0,3.54347795]
[1730999656501,0.077234,76132.0,76131.0,3.54847795]
[1730999656708,0.077234,76132.0,76131.0,3.54347795]
[1730999656908,0.077234,76132.0,76131.0,3.54847795]
[1730999657109,0.077234,76132.0,76131.0,3.54347795]
[1730999657287,0.077234,76132.0,76131.0,3.54647795]
[1730999658779,0.001334,76132.0,76131.0,3.53847795]
[1730999658985,0.001334,76132.0,76131.0,3.53947795]
[1730999659191,0.007334,76132.0,76131.0,3.54047795]
[1730999659404,0.006334,76132.0,76131.0,3.53947795]
[1730999659795,0.007334,76132.0,76131.0,3.54047795]
[1730999661784,0.007334,76132.0,76131.0,3.52842802]
[1730999662002,0.007334,76132.0,76131.0,3.54053507]
[1730999662425,0.007334,76132.0,76131.0,3.54220727]
[1730999663059,0.007334,76132.0,76131.0,3.54720727]
[1730999665499,0.007334,76132.0,76131.0,3.54721106]
[1730999665909,0.0004,76139.0,76131.0,3.54721106]
[1730999666115,0.0004,76139.0,76136.0,0.005]
[1730999666293,0.0004,76139.0,76138.0,0.005]
[1730999666562,0.0004,76139.0,76138.0,0.14935606]
[1730999666767,0.0004,76139.0,76138.0,0.15198266]
[1730999666969,0.0004,76139.0,76138.0,0.61778754]
[1730999668193,0.0004,76139.0,76138.0,0.92775622]
[1730999668408,0.19810218,76150.0,76138.0,0.93775622]
[1730999668616,0.1968174,76150.0,76149.0,0.16024102]
[1730999669036,0.000744,76151.0,76149.0,0.55420102]
[1730999669255,0.000744,76151.0,76150.0,0.22423063]
[1730999669479,0.000744,76151.0,76150.0,0.28305656]
[1730999669690,0.000744,76151.0,76150.0,0.66739063]
[1730999671401,0.000744,76151.0,76150.0,0.76499063]
[1730999671619,0.000744,76151.0,76150.0,0.94335931]
[1730999671832,0.0004,76159.0,76157.0,0.022]
[1730999672050,0.000744,76163.0,76162.0,0.043]
[1730999672263,0.000744,76163.0,76162.0,0.005]
[1730999672476,0.000744,76163.0,76162.0,0.13724102]
[1730999672724,0.0004,76179.0,76172.0,0.15736868]
[1730999672928,0.0004,76179.0,76178.0,0.17236868]
[1730999673157,0.19810218,76196.0,76189.0,0.01]
[1730999673367,0.19810218,76196.0,76178.0,0.39381]
[1730999673580,0.19810218,76196.0,76189.0,0.39876]
[1730999673796,10.4302663,76197.0,76189.0,0.57497541]
[1730999674679,10.4302663,76197.0,76189.0,0.53509941]
[1730999674908,10.4302663,76197.0,76189.0,0.52600102]
[1730999674909,0.19810218,76196.0,76189.0,0.52600102]
[1730999675125,10.4302663,76197.0,76189.0,0.52600102]
[1730999675126,0.010833,76190.0,76189.0,0.52600102]
[1730999675386,0.010833,76190.0,76189.0,0.53200102]
[1730999675597,0.010833,76190.0,76189.0,0.54300102]
[1730999675824,0.010833,76190.0,76189.0,0.59130112]
[1730999676036,0.010833,76190.0,76189.0,0.58530112]
[1730999676251,0.010833,76190.0,76189.0,0.53700102]
[1730999676682,0.010833,76190.0,76189.0,0.53400102]
[1730999677299,0.010833,76190.0,76189.0,0.52900102]
[1730999677504,0.010833,76190.0,76189.0,0.52600102]
[1730999677915,0.010833,76190.0,76189.0,0.53200102]
[1730999678335,0.010833,76190.0,76189.0,0.52600102]
[1730999678758,0.010833,76190.0,76189.0,0.53300102]
[1730999679144,0.010833,76190.0,76189.0,0.57980112]
[1730999679386,0.010833,76190.0,76189.0,0.53200102]
[1730999679588,0.010833,76190.0,76189.0,0.53100102]
[1730999680050,0.010833,76190.0,76189.0,0.53300102]